Workbook

Sheet ΕΝΑΡΞΗ
B1: ΣΧΕΤΙΚΑ ΜΕ ΑΥΤΟ ΤΟ ΠΡΟΤΥΠΟ
B2: Καταγράψτε την αρχική επένδυση στην τοποθεσία web, τα οφέλη της και τα έξοδα χρησιμοποιώντας αυτό το εργαλείο προϋπολογισμού τοποθεσίας web.
B3: Εισαγάγετε στοιχεία στους πίνακες για να υπολογιστούν αυτόματα τα σύνολα και τα μετρικά αξιολόγησης.
B4: Σημείωση:
B5: Στη στήλη A του φύλλου εργασίας "ΕΡΓΑΛΕΙΟ ΠΡΟΫΠΟΛΟΓΙΣΜΟΥ" παρέχονται πρόσθετες οδηγίες. Αυτό το κείμενο αποκρύφτηκε σκόπιμα. Για να καταργήσετε το κείμενο, επιλέξτε τη στήλη A και, στη συνέχεια, πατήστε το πλήκτρο DELETE. Για να εμφανίσετε το κείμενο, επιλέξτε τη στήλη A και, στη συνέχεια, αλλάξτε το χρώμα γραμματοσειράς.
B6: Για να μάθετε περισσότερα για τους πίνακες στο φύλλο εργασίας, πατήστε το πλήκτρο SHIFT και, στη συνέχεια, F10 μέσα σε έναν πίνακα, επιλέξτε "ΠΙΝΑΚΑΣ" και, στη συνέχεια, επιλέξτε "ΕΝΑΛΛΑΚΤΙΚΟ ΚΕΙΜΕΝΟ".

Sheet ΕΡΓΑΛΕΙΟ ΠΡΟΫΠΟΛΟΓΙΣΜΟΥ
B2: Υλικό Quadrex
B3: ΕΡΓΑΛΕΙΟ ΠΡΟΫΠΟΛΟΓΙΣΜΟΥ ΤΟΠΟΘΕΣΙΑΣ WEB
B4: 2022-12-01
B6: Δεδομένα εταιρείας | C6: Ποσοστό
B7: Απαιτούμενο ποσοστό απόδοσης | C7: 10%
B8: Φορολογικός συντελεστής | C8: 30%
B10: Αρχική επένδυση στην τοποθεσία web | C10: Έτος
B11: Υλικό (π.χ., διακομιστές) | C11: 25,000.00 €
B12: Λογισμικό (π.χ., λογισμικό καταλόγου ηλεκτρονικού εμπορίου) | C12: 15,000.00 €
B13: Προγραμματισμός (π.χ., προγραμματισμός και σχεδίαση τοποθεσίας από τρίτο) | C13: 150,000.00 €
B14: Σύνολο αρχικών επενδύσεων | C14: =SUBTOTAL(109,ΑρχικήΕπένδυση[Έτος]) -> 190,000.00 €
B16: Οφέλη από την τοποθεσία web | C16: Έτος 1 | D16: Έτος 2 | E16: Έτος 3
B17: Άμεσες πωλήσεις | C17: 15,000.00 € | D17: 50,000.00 € | E17: 75,000.00 €
B18: Αύξηση των πωλήσεων ως αποτέλεσμα της βελτιωμένης αποτελεσματικότητας της προώθησης / των πωλητών | C18: 25,000.00 € | D18: 25,000.00 € | E18: 25,000.00 €
B19: Αύξηση των πωλήσεων ως αποτέλεσμα της αυξημένης συμμετοχής συνεργατών | C19: 25,000.00 € | D19: 25,000.00 € | E19: 25,000.00 €
B20: Μειωμένα έξοδα ταξιδιών | C20: 25,000.00 € | D20: 25,000.00 € | E20: 25,000.00 €
B21: Μειωμένα έξοδα εξυπηρέτησης πελατών | C21: 50,000.00 € | D21: 50,000.00 € | E21: 50,000.00 €
B22: Σύνολο οφελών | C22: =SUBTOTAL(109,Οφέλη[Έτος 1]) -> 140,000.00 € | D22: =SUBTOTAL(109,Οφέλη[Έτος 2]) -> 175,000.00 € | E22: =SUBTOTAL(109,Οφέλη[Έτος 3]) -> 200,000.00 €
B24: Κόστη (εκτός από τις αρχικές επενδύσεις κεφαλαίου) | C24: ΕΤΟΣ 1 | D24: ΕΤΟΣ 2 | E24: ΕΤΟΣ 3
B25: Κόστος πωλήσεων | C25: 7,500.00 € | D25: 25,000.00 € | E25: 37,500.00 €
B26: Συντήρηση | C26: 15,000.00 € | D26: 15,000.00 € | E26: 15,000.00 €
B27: Διαχείριση έργων, υποστήριξη πελατών | C27: 35,000.00 € | D27: 35,000.00 € | E27: 35,000.00 €
B28: Online διαφήμιση, καταχώρηση σε μηχανές αναζήτησης | C28: 10,000.00 € | D28: 10,000.00 € | E28: 10,000.00 €
B29: Απόσβεση κεφαλαιουχικών δαπανών (για τον υπολογισμό χρησιμοποιείται περίοδος τριών ετών) | C29: =ΑρχικήΕπένδυση[[#Totals],[Έτος]]/3 -> 63,333.33 € | D29: =ΑρχικήΕπένδυση[[#Totals],[Έτος]]/3 -> 63,333.33 € | E29: =ΑρχικήΕπένδυση[[#Totals],[Έτος]]/3 -> 63,333.33 €
B30: Συνολικό κόστος | C30: =SUBTOTAL(109,Έξοδα[ΕΤΟΣ 1]) -> 130,833.33 € | D30: =SUBTOTAL(109,Έξοδα[ΕΤΟΣ 2]) -> 148,333.33 € | E30: =SUBTOTAL(109,Έξοδα[ΕΤΟΣ 3]) -> 160,833.33 €
B32: Σύνολα | D32: Έτος 1 | E32: Έτος 2 | F32: Έτος 3
B33: Καθαρά οφέλη (κόστη) | D33: =Οφέλη[[#Totals],[Έτος 1]]-Έξοδα[[#Totals],[ΕΤΟΣ 1]] -> 9,166.67 € | E33: =Οφέλη[[#Totals],[Έτος 2]]-Έξοδα[[#Totals],[ΕΤΟΣ 2]] -> 26,666.67 € | F33: =Οφέλη[[#Totals],[Έτος 3]]-Έξοδα[[#Totals],[ΕΤΟΣ 3]] -> 39,166.67 €
B34: Φόρος | D34: =D33*ΦορολογικόςΣυντελεστής -> 2,750.00 € | E34: =E33*ΦορολογικόςΣυντελεστής -> 8,000.00 € | F34: =F33*ΦορολογικόςΣυντελεστής -> 11,750.00 €
B35: Τιμή μετά τον φόρο | D35: =D33-D34 -> 6,416.67 € | E35: 18,666.67 € | F35: 27,416.67 €
B36: Προσθήκη απόσβεσης | D36: =C29 -> 63,333.33 € | E36: =D29 -> 63,333.33 € | F36: =E29 -> 63,333.33 €
B37: Ταμειακή ροή | C37: =-ΑρχικήΕπένδυση[[#Totals],[Έτος]] -> -190,000.00 € | D37: =D35+D36 -> 69,750.00 € | E37: 82,000.00 € | F37: 90,750.00 €
B38: Αθροιστική ταμειακή ροή | C38: =C37 -> -190,000.00 € | D38: =C38+D37 -> -120,250.00 € | E38: -38,250.00 € | F38: 52,500.00 €
B40: Μετρικά αξιολόγησης | C40: Τιμές
B41: Καθαρή παρούσα αξία (NPV) | C41: =C37+(NPV(ΠοσοστόΑπόδοσης,D37:F37)) -> 9,359.50 €
B42: Ποσοστό εσωτερικής απόδοσης (IRR) | C42: =IRR(C37:F37) -> 12.66%
B43: Περίοδος αποπληρωμής (σε έτη) | C43: =IF(F38<=0,"Υπερβαίνει τα 3 έτη",IF(E38<=0,(F37-F38)/F37+2,IF(D38<=0,(E37-E38)/E37+1,IF(C38<=0,(D37-D38)/D37,"Δ/Υ")))) -> 2.42
